bitfinex-derivatives/quotes_ETHF0:USTF0_20250110
["timestamp","ask_amount","ask_price","bid_price","bid_amount"]
[1736474543798,0.0518775,3248.3,3247.6,3.2078]
[1736474543998,0.30795,3247.8,3247.6,3.2078]
[1736474544205,7.45879584,3248.4,3247.6,3.2078]
[1736474544505,0.30793,3248.0,3247.7,0.4339]
[1736474544900,0.30793,3247.9,3247.7,0.4339]
[1736474545202,6.13279584,3248.4,3247.7,0.4313478]
[1736474545999,0.30791,3248.2,3247.7,0.4313478]
[1736474546203,2.92499584,3248.4,3248.3,0.30789]
[1736474546399,0.77339584,3248.4,3248.1,3.2078]
[1736474547105,1.08128584,3248.4,3248.1,3.2078]
[1736474547304,0.77339584,3248.4,3248.1,3.2078]
[1736474547502,0.77339584,3248.4,3248.3,0.30789]
[1736474548202,0.77339584,3248.4,3248.3,40.8]
[1736474548909,0.77339584,3248.4,3248.1,3.2078]
[1736474549411,0.77339584,3248.4,3248.3,0.30789]
[1736474549609,0.77339584,3248.4,3248.1,3.2078]
[1736474550004,1.08128584,3248.4,3248.1,3.2078]
[1736474550298,3.2078,3249.8,3248.1,3.2078]
[1736474550508,0.30782,3249.1,3248.8,3.2078]
[1736474550909,0.30781,3249.2,3248.8,3.2078]
[1736474551110,0.4776,3249.6,3248.8,3.2078]
[1736474551305,0.30782,3249.2,3248.8,3.2078]
[1736474551710,0.30784,3248.9,3248.8,3.2078]
[1736474552803,0.30788,3248.5,3248.4,0.4629]
[1736474552999,0.4368,3248.8,3248.4,3.6707]
[1736474553306,0.4368,3248.8,3248.5,0.30787]
[1736474553509,0.4368,3248.8,3248.6,0.30786]
[1736474554811,0.30783,3249.0,3248.6,0.30786]
[1736474555212,0.4442,3249.1,3248.4,3.6707]
[1736474555511,0.30784,3248.9,3248.4,3.97858]
[1736474555712,3.2078,3248.9,3248.4,0.4629]
[1736474556008,0.4442,3249.1,3248.4,3.6707]
[1736474556215,0.4442,3249.1,3248.9,0.30783]
[1736474556410,0.4368,3249.2,3248.9,0.30783]
[1736474556814,0.4368,3249.2,3248.8,3.51564]
[1736474557014,0.4368,3249.2,3248.9,0.30783]
[1736474557209,0.30776,3249.8,3248.9,0.30784]
[1736474557415,4.84955,3249.9,3249.4,0.30778]
[1736474557611,4.5418,3249.9,3249.4,0.30778]
[1736474557914,4.5418,3249.9,3249.2,3.51561]
[1736474558103,0.30777,3249.6,3249.2,3.51561]
[1736474558410,0.30778,3249.6,3249.2,3.2078]
[1736474558608,0.30776,3249.8,3249.3,0.3078]
[1736474558812,4.5418,3249.9,3249.2,3.51561]
[1736474559114,0.30777,3249.7,3249.2,3.51561]
[1736474559315,0.30776,3249.8,3249.3,0.3078]
[1736474559511,4.5418,3249.9,3249.3,0.3078]
[1736474559815,0.30777,3249.6,3249.2,3.2078]
[1736474560015,4.5418,3249.9,3249.2,3.2078]
[1736474560614,0.30777,3249.7,3249.2,3.51561]
[1736474561010,4.5418,3249.9,3249.2,3.2078]
[1736474561011,0.30777,3249.6,3249.2,3.2078]
[1736474561412,0.30777,3249.7,3249.2,3.51561]
[1736474561809,4.5418,3249.9,3249.2,3.2078]
[1736474562012,0.30777,3249.7,3249.2,3.5156]
[1736474562213,4.5418,3249.9,3249.2,3.2078]
[1736474562418,0.30778,3249.6,3249.2,3.2078]
[1736474563511,3.2078,3249.9,3249.2,3.2078]
[1736474563718,0.30778,3249.6,3249.2,3.2078]
[1736474564218,0.30779,3249.5,3249.2,3.2078]
[1736474564717,0.30779,3249.5,3249.1,0.30782]
[1736474564718,3.2078,3249.4,3248.8,3.2078]
[1736474564914,0.30783,3249.1,3248.8,3.2078]
[1736474565114,0.30782,3249.2,3248.8,3.2078]
[1736474565321,0.7479,3249.3,3248.9,0.30784]
[1736474565811,0.4401,3249.3,3248.8,3.2078]
[1736474566420,0.4401,3249.3,3248.5,0.4506]
[1736474566610,5.53958735,3248.9,3248.3,40.8]
[1736474566917,0.30792,3248.0,3247.5,3.51576]
[1736474567117,0.30792,3248.0,3246.9,0.24001607]
[1736474567118,3.2078,3248.0,3246.9,3.2078]
[1736474567318,0.30799,3247.4,3247.0,40.8]
[1736474567620,0.30798,3247.4,3247.0,40.8]
[1736474567821,3.2078,3247.6,3247.0,40.8]
[1736474568020,3.51577,3247.6,3247.1,0.30801]
[1736474568626,3.51577,3247.6,3247.0,40.8]
[1736474568824,0.30797,3247.5,3247.1,0.30801]
[1736474569120,3.51577,3247.6,3247.1,0.30801]
[1736474569520,3.2078,3247.6,3246.9,3.2078]
[1736474569725,0.30797,3247.6,3247.0,0.30802]
[1736474570019,1.3262,3247.9,3246.9,44.0078]
[1736474570322,0.30792,3248.1,3247.5,3.2078]
[1736474570623,0.30792,3248.1,3247.7,0.30795]
[1736474571420,0.30795,3247.8,3247.5,3.2078]
[1736474571611,3.2078,3248.0,3247.1,3.2078]
[1736474571817,0.30796,3247.7,3247.3,0.30799]
[1736474572213,0.30796,3247.6,3247.2,0.308]
[1736474573622,1.334,3247.9,3247.2,0.308]
[1736474573821,3.2078,3247.5,3246.9,40.8]
[1736474574020,3.2078,3247.5,3246.3,2.33178735]
[1736474574021,3.2078,3247.0,3246.2,3.2078]
[1736474574224,4.5418,3247.0,3246.2,3.2078]
[1736474574416,4.5418,3247.0,3246.2,44.0078]
[1736474574925,4.5418,3247.0,3246.3,0.30808]
[1736474575123,4.5418,3247.0,3246.2,44.0078]
[1736474575124,0.30808,3246.4,3246.2,44.0078]
[1736474575326,0.30807,3246.5,3246.2,44.0078]
[1736474575815,4.5418,3247.0,3246.2,44.0078]
[1736474576126,0.30807,3246.5,3246.2,44.0078]
[1736474576725,4.5418,3247.0,3246.2,44.0078]
[1736474576923,0.30807,3246.5,3246.2,44.0078]
[1736474577625,4.5418,3247.0,3246.2,44.0078]
[1736474577823,0.30807,3246.5,3246.2,44.0078]
[1736474578329,4.5418,3247.0,3246.2,44.0078]
[1736474578524,0.30808,3246.4,3246.2,44.0078]
[1736474578720,4.5418,3247.0,3246.2,44.0078]
[1736474578926,0.30808,3246.3,3246.2,44.0078]
[1736474579226,0.30807,3246.5,3246.2,44.0078]
[1736474579420,0.30806,3246.6,3246.2,44.0078]
[1736474579624,0.30807,3246.5,3246.2,44.0078]
[1736474580533,4.5418,3247.0,3246.2,44.0078]
[1736474580723,1.3501,3247.4,3246.6,3.2078]
[1736474581328,0.30808,3246.3,3246.2,3.2078]
[1736474581528,0.30807,3246.5,3246.2,3.2078]
[1736474581726,1.335,3246.6,3246.2,3.2078]
[1736474581927,3.2078,3246.7,3246.2,3.2078]
[1736474582123,4.5428,3246.7,3246.2,3.2078]
[1736474582330,0.30808,3246.3,3246.2,3.2078]
[1736474582631,0.30808,3246.3,3246.0,0.8895]
[1736474582632,0.3081,3246.1,3246.0,0.4304]
[1736474582817,1.3268,3246.6,3246.0,0.4304]
[1736474583121,0.30811,3246.1,3245.8,40.8]
[1736474583327,1.3268,3246.6,3245.8,40.8]
[1736474583526,0.3081,3246.1,3245.8,40.8]
[1736474583725,1.18816,3246.6,3245.8,40.8]
[1736474583919,3.2078,3246.7,3246.1,3.2078]
[1736474584119,3.2078,3246.7,3245.8,40.8]
[1736474584628,0.30809,3246.2,3245.8,40.8]
[1736474584829,0.4339,3246.6,3245.8,40.8]
[1736474585626,0.30809,3246.2,3245.8,41.10813]
[1736474586222,0.4339,3246.6,3245.8,40.8]
[1736474586526,3.2078,3246.7,3246.1,3.2078]
[1736474586736,0.4358,3247.2,3246.8,0.30803]
[1736474586935,4.85379,3247.3,3246.9,0.30803]
[1736474587125,0.4394,3247.5,3246.9,3.2078]
[1736474587325,4.9906,3247.7,3246.9,3.2078]
[1736474588030,0.30799,3247.4,3246.9,3.51583]
[1736474588429,5.437,3247.7,3246.9,3.2078]
[1736474588625,2.53716,3247.7,3247.3,0.30799]
[1736474588831,0.4464,3247.7,3247.3,0.30799]
[1736474589027,10.581,3247.8,3247.3,3.2078]
[1736474589328,3.2078,3247.7,3247.0,40.8]
[1736474589528,0.30801,3247.2,3246.7,0.30804]
[1736474589732,0.30798,3247.4,3247.0,0.30802]
[1736474590033,3.2078,3247.7,3247.4,0.30798]
[1736474590428,0.30794,3247.8,3247.4,0.30798]
[1736474590729,3.2078,3248.1,3247.5,0.9165]
[1736474591033,3.2078,3248.1,3247.8,0.30794]
[1736474591228,3.2078,3248.1,3247.5,0.9165]
[1736474591531,3.2078,3248.5,3247.5,0.9165]
[1736474591833,0.30792,3248.1,3247.6,0.30795]
[1736474592031,0.30791,3248.2,3247.5,0.9165]
[1736474592328,4.9834,3248.5,3247.5,0.9165]
[1736474592532,0.30797,3247.6,3247.4,3.2078]
[1736474592736,1.338,3247.8,3247.4,3.2078]
[1736474592931,0.30797,3247.5,3247.4,3.2078]
[1736474594729,0.4376,3247.7,3247.4,3.2078]
[1736474594930,4.1373,3248.1,3247.6,0.30795]
[1736474594931,5.78322,3248.1,3247.6,0.30795]
[1736474595133,0.30793,3248.0,3247.5,1.19976]
[1736474595322,4.1373,3248.1,3247.5,0.8918]
[1736474595535,1.23742,3248.1,3247.6,0.30796]
[1736474595731,1.23742,3248.1,3247.5,0.8918]
[1736474596036,1.23742,3248.1,3247.7,0.30795]
[1736474596233,0.9295,3248.1,3247.6,0.30796]
[1736474596430,0.4525,3248.1,3247.5,0.8918]
[1736474596828,3.2078,3248.5,3248.2,0.3079]
[1736474597537,1.338,3248.9,3248.4,0.30788]
[1736474597734,1.64584,3248.9,3248.4,0.30788]
[1736474597935,0.30784,3248.9,3248.4,0.30788]
[1736474598140,0.869,3249.1,3248.3,3.2078]
[1736474598341,0.3078,3249.3,3248.7,3.2078]
[1736474598639,3.5156,3249.4,3248.8,0.30784]
[1736474598835,3.5156,3249.4,3248.9,0.30784]
[1736474599338,3.2078,3249.4,3248.7,3.2078]
[1736474599739,3.2078,3249.4,3248.7,3.51565]
[1736474599931,0.30781,3249.3,3248.8,0.30784]
[1736474600127,3.5156,3249.4,3248.7,3.2078]
[1736474600338,0.469,3249.5,3248.7,3.2078]
[1736474600536,0.469,3249.5,3249.0,0.30782]
[1736474600736,0.469,3249.5,3248.7,3.2078]
[1736474600737,0.76577,3249.6,3248.7,3.2078]
[1736474600937,0.30778,3249.5,3249.0,0.30782]
[1736474601140,0.76578,3249.6,3249.1,0.30782]
[1736474601337,0.30779,3249.5,3248.7,3.2078]
[1736474601538,0.76578,3249.6,3249.0,0.30782]
[1736474601739,0.30778,3249.5,3249.0,0.30782]
[1736474602138,0.458,3249.6,3248.7,3.2078]
[1736474602334,3.2078,3249.9,3249.5,0.30778]
[1736474602538,3.2078,3249.9,3249.6,0.30777]
[1736474602942,3.2078,3249.9,3249.2,0.4328]
[1736474603142,0.4448,3250.2,3249.7,0.30776]
[1736474603443,0.4448,3250.2,3249.8,0.30775]
[1736474603841,0.4448,3250.2,3249.5,3.2078]
[1736474603842,0.4448,3250.2,3249.7,0.30776]
[1736474604045,0.4448,3250.2,3249.8,0.30775]
[1736474604640,0.4448,3250.2,3249.5,3.2078]
[1736474604641,0.4448,3250.2,3249.7,0.30776]
[1736474604840,0.4448,3250.2,3249.5,3.2078]
[1736474605042,0.4448,3250.2,3249.9,0.30774]
[1736474605246,0.4448,3250.2,3249.5,3.2078]
[1736474605444,0.4448,3250.2,3249.8,0.30775]
[1736474605945,0.4448,3250.2,3249.9,0.30774]
[1736474606150,0.4448,3250.2,3249.7,0.30776]
[1736474606445,0.4448,3250.2,3249.8,0.30775]
[1736474606645,0.75252,3250.2,3249.5,3.2078]
[1736474607040,0.75252,3250.2,3249.8,0.30775]
[1736474607235,3.51551,3250.3,3249.8,0.30775]
[1736474607549,3.2078,3250.3,3250.2,0.30771]
[1736474607745,3.2078,3250.7,3250.3,0.3077]
[1736474607940,3.2078,3250.7,3250.2,0.4649]
[1736474608147,3.2078,3250.7,3250.2,0.77261]
[1736474608446,3.2078,3250.7,3250.2,0.4649]
[1736474608646,3.2078,3250.7,3250.5,0.30769]
[1736474609142,3.2078,3250.7,3250.6,0.30768]
[1736474609546,0.4483,3250.9,3250.3,3.6517]
[1736474609750,0.30767,3250.8,3250.2,0.77261]
[1736474609949,3.2078,3250.8,3249.9,3.2078]
[1736474610150,3.5155,3250.4,3249.9,3.51554]
[1736474610354,0.4633,3250.3,3250.0,0.30773]
[1736474610560,0.30772,3250.2,3249.9,3.2078]
[1736474610740,0.4633,3250.3,3249.9,3.2078]
[1736474610944,0.4605,3250.2,3249.9,3.2078]
[1736474611351,0.4605,3250.2,3249.5,0.4649]
[1736474611753,0.30774,3250.0,3249.5,0.77268]
[1736474612146,0.4605,3250.2,3249.5,0.4649]
[1736474612645,0.30774,3250.0,3249.5,0.77268]
[1736474613244,0.30773,3250.1,3249.5,0.77268]
[1736474613449,0.30775,3249.8,3249.4,3.51559]
[1736474613649,0.4605,3250.2,3249.4,3.2078]
[1736474614041,0.30776,3249.8,3249.4,3.2078]
[1736474614453,0.30777,3249.7,3249.4,3.2078]
[1736474614845,0.30777,3249.7,3249.0,0.4762]
[1736474614846,4.5448,3249.8,3249.0,3.51563]
[1736474615047,0.30783,3249.0,3248.6,0.30786]
[1736474615249,0.30786,3248.7,3248.4,3.2078]
[1736474615555,0.30785,3248.8,3248.4,3.2078]
[1736474615752,0.4549,3248.9,3248.4,3.2078]
[1736474616053,3.2078,3248.5,3248.2,40.8]
[1736474616256,0.3079,3248.3,3247.8,0.30794]
[1736474616550,0.4697,3248.8,3247.4,3.2078]
[1736474616551,3.2078,3248.1,3247.4,3.2078]
[1736474616757,0.30794,3247.8,3247.5,40.8]
[1736474616959,0.4755,3248.0,3247.5,40.8]
[1736474617154,3.2078,3248.1,3247.5,40.8]
[1736474617457,2.33178735,3248.2,3247.6,0.30796]
[1736474617458,0.30791,3248.2,3247.6,0.30796]
[1736474617655,0.3079,3248.3,3247.5,40.8]
[1736474617959,1.7982,3248.4,3247.5,40.8]
[1736474618460,2.33178735,3248.2,3247.5,40.8]
[1736474619060,0.30794,3247.9,3247.5,40.8]
[1736474619650,2.33178735,3248.2,3247.5,40.8]
[1736474619852,0.30792,3248.0,3247.5,41.10797]
[1736474620258,2.33178735,3248.2,3247.5,40.8]
[1736474620460,0.30794,3247.8,3247.5,40.8]
[1736474620856,0.30793,3247.9,3247.5,40.8]
[1736474621256,0.30794,3247.8,3247.5,40.8]
[1736474621458,2.33178735,3248.2,3247.5,40.8]
[1736474621654,1.351,3248.3,3247.7,0.30795]
[1736474622358,1.6589,3248.3,3247.7,0.30795]
[1736474623559,3.51568,3248.5,3247.8,3.6791]
[1736474623857,0.3079,3248.3,3247.8,3.98704]
[1736474624057,0.30789,3248.4,3247.8,3.98704]
[1736474624260,0.30789,3248.4,3247.9,0.30793]
[1736474624862,3.2078,3248.5,3247.8,3.6791]
[1736474625460,0.30791,3248.2,3247.8,3.6791]
[1736474626356,3.2078,3248.5,3247.8,3.6791]
[1736474626557,0.3079,3248.3,3247.9,0.4762]
[1736474626854,3.2078,3248.5,3248.0,0.30792]
[1736474627360,3.2078,3248.5,3247.8,3.6791]
[1736474627560,2.33178735,3248.2,3247.8,3.2078]
[1736474628060,0.30792,3248.1,3247.8,3.2078]
[1736474628365,3.2078,3248.5,3247.8,3.2078]
[1736474628563,0.30792,3248.1,3247.8,3.2078]
[1736474629059,0.30792,3248.0,3247.8,3.2078]
[1736474629265,0.30793,3247.9,3247.8,3.2078]
[1736474629465,0.30793,3248.0,3247.8,3.2078]
[1736474630260,0.30792,3248.1,3247.8,3.2078]
[1736474631465,0.30793,3248.0,3247.8,3.2078]
[1736474631866,0.30792,3248.1,3247.8,3.2078]
[1736474632570,1.92396152,3248.3,3247.8,3.2078]
[1736474632761,0.30793,3247.9,3247.8,3.2078]
[1736474632961,0.30792,3248.1,3247.8,3.2078]
[1736474633674,1.92396152,3248.3,3247.8,3.2078]
[1736474633966,0.30793,3248.0,3247.8,3.2078]
[1736474634169,1.92396152,3248.3,3247.8,3.2078]
[1736474634366,0.30793,3247.9,3247.8,3.2078]
[1736474635265,1.92396152,3248.3,3247.8,3.2078]
[1736474635468,0.30793,3247.9,3247.8,3.2078]
[1736474637072,0.30793,3248.0,3247.8,3.2078]
[1736474638567,1.92396152,3248.3,3247.8,3.2078]
[1736474638769,2.59617,3248.7,3247.1,0.4368]
[1736474638770,1.92396152,3248.0,3247.1,0.4368]
[1736474638974,1.92396152,3247.2,3246.9,0.4521]
[1736474639177,0.30805,3246.7,3246.5,3.2078]
[1736474639567,0.30805,3246.7,3246.3,0.76018]
[1736474640068,1.92396152,3246.6,3246.3,0.4521]
[1736474640372,2.23202152,3246.6,3246.3,0.4521]
[1736474641075,1.92396152,3246.6,3246.3,0.4521]
[1736474641266,2.23202152,3246.6,3246.3,0.4521]
[1736474641773,1.92396152,3246.6,3246.3,0.4521]
[1736474641968,1.92396152,3246.6,3246.1,3.2078]
[1736474642164,1.92396152,3246.2,3244.8,3.2078]
[1736474642365,1.92396152,3245.3,3244.9,0.898]
[1736474642570,1.92396152,3245.3,3244.9,41.698]
[1736474642768,2.23215152,3245.3,3244.9,41.698]
[1736474642966,3.2078,3246.4,3244.9,43.62196152]
[1736474643174,0.30809,3246.3,3245.7,0.30814]
[1736474643370,0.30808,3246.3,3245.8,0.9119]
[1736474643766,1.351,3246.5,3245.8,0.9119]
[1736474643767,1.92396152,3246.1,3245.8,0.9119]
[1736474643965,1.92396152,3246.1,3245.8,0.4349]
[1736474644266,0.30815,3245.6,3245.1,3.51599]
[1736474644472,1.92396152,3245.2,3244.5,0.30825]
[1736474644669,1.92396152,3244.9,3244.5,0.477]
[1736474644870,1.92396152,3244.9,3244.6,41.10825]
[1736474645373,1.92396152,3244.9,3244.5,0.477]
[1736474645571,0.30823,3244.8,3244.5,0.477]
[1736474645774,1.92396152,3244.9,3244.5,0.477]
[1736474645965,1.92396152,3244.9,3244.5,41.277]
[1736474646162,2.23218152,3244.9,3244.5,41.277]
[1736474646475,3.2078,3245.1,3244.8,0.30823]
[1736474646680,3.2078,3245.1,3244.5,0.477]
[1736474646681,2.38766152,3245.5,3244.7,3.2078]
[1736474646970,3.57110152,3245.8,3245.2,3.51598]
[1736474647374,3.67434764,3245.8,3245.2,3.51598]
[1736474647671,3.98248764,3245.8,3245.3,0.30817]
[1736474647972,0.4705,3245.9,3245.5,0.30816]
[1736474648173,1.34,3245.9,3245.3,0.9176]
[1736474648377,1.34,3245.9,3245.6,0.30815]
[1736474648573,1.34,3245.9,3245.3,0.9176]
[1736474648779,1.34,3246.5,3245.7,0.30814]
[1736474648974,0.30807,3246.5,3246.1,3.2078]
[1736474649278,0.30808,3246.3,3246.1,3.2078]
[1736474649868,5.85124764,3246.2,3245.6,0.30815]
[1736474650069,5.54314764,3246.2,3245.5,3.2078]
[1736474650373,5.54314764,3246.2,3245.8,0.30813]
[1736474650564,3.2078,3246.2,3245.8,0.30813]
[1736474650764,3.2078,3246.2,3245.8,0.30812]
[1736474650977,0.30808,3246.4,3245.8,0.30812]
[1736474651572,1.64808,3246.4,3245.8,0.30812]
[1736474652183,1.34,3246.4,3245.5,3.2078]
[1736474652378,0.3081,3246.2,3245.6,0.30815]
[1736474652682,2.33534764,3245.8,3245.5,3.2078]
[1736474652874,0.30819,3245.2,3245.1,3.2078]
[1736474653080,5.54314764,3245.4,3244.7,3.2078]
[1736474653272,0.30819,3245.2,3244.7,3.51604]
[1736474653585,5.54314764,3245.4,3244.7,3.2078]
[1736474653878,0.3082,3245.1,3244.7,3.2078]
[1736474654467,5.54314764,3245.4,3244.7,3.2078]
[1736474654680,0.30822,3244.9,3244.7,3.2078]
[1736474654884,5.54314764,3245.4,3244.7,3.2078]
[1736474655179,0.30818,3245.3,3244.7,3.2078]
[1736474655377,5.54314764,3245.4,3244.7,3.2078]
[1736474655378,5.54314764,3245.4,3244.7,3.51603]
[1736474655570,0.30819,3245.2,3244.7,3.51603]
[1736474655776,0.30818,3245.3,3244.7,3.2078]
[1736474655971,0.30821,3245.1,3244.7,3.2078]
[1736474656175,5.54314764,3245.4,3244.7,3.2078]
[1736474656379,0.30823,3244.8,3244.7,3.2078]
[1736474656774,5.43522,3244.9,3244.3,4.1008]
[1736474656986,0.30826,3244.5,3244.3,0.4309]
[1736474657289,0.9154,3244.9,3244.3,0.4309]
[1736474657583,2.33534764,3244.6,3243.9,3.2078]
[1736474657780,2.33534764,3244.6,3243.7,0.4641]
[1736474657781,2.33534764,3244.2,3243.7,0.4641]
[1736474658080,0.30831,3244.0,3243.7,0.4641]
[1736474658281,0.3083,3244.1,3243.7,0.4641]
[1736474658585,4.5478,3244.2,3243.9,0.30831]
[1736474658883,1.34,3244.2,3244.0,0.3083]
[1736474659084,2.33534764,3244.6,3244.3,0.30827]
[1736474659285,3.2078,3244.7,3244.6,0.30825]
[1736474659880,3.2078,3244.7,3244.6,40.8]
[1736474660381,2.33534764,3245.0,3244.4,0.4512]
[1736474660583,0.475,3244.9,3244.3,3.2078]
[1736474660777,0.30823,3244.8,3244.3,3.2078]
[1736474660983,0.475,3244.9,3244.3,3.2078]
[1736474661183,0.30825,3244.6,3244.3,3.2078]
[1736474661584,3.67534764,3244.6,3243.9,3.2078]
[1736474662084,0.4414,3244.5,3243.9,3.51611]
[1736474662279,0.30827,3244.4,3243.9,3.51611]
[1736474662480,0.4414,3244.5,3243.9,3.2078]
[1736474662684,0.30829,3244.2,3243.9,3.2078]
[1736474663187,0.30826,3244.4,3243.9,3.2078]
[1736474663387,0.4414,3244.5,3243.9,3.2078]
[1736474663682,0.30829,3244.1,3243.9,3.2078]
[1736474663879,0.30828,3244.3,3243.9,3.2078]
[1736474664576,0.4414,3244.5,3243.9,3.2078]
[1736474664983,0.30829,3244.2,3243.9,3.2078]
[1736474665184,0.30828,3244.3,3243.9,3.2078]
[1736474665385,0.3083,3244.1,3243.9,3.2078]
[1736474665688,2.33534764,3244.2,3243.9,3.2078]
[1736474665888,2.64363764,3244.2,3243.9,3.2078]
[1736474667587,0.3083,3244.1,3243.9,3.2078]
[1736474667985,2.33534764,3244.2,3243.9,3.2078]
[1736474668282,2.64363764,3244.2,3243.9,3.2078]
[1736474668681,0.4611,3244.4,3243.9,3.2078]
[1736474669089,0.30828,3244.3,3243.9,3.51611]
[1736474669291,3.67534764,3244.6,3243.9,3.2078]
[1736474669588,3.67534764,3244.6,3244.3,3.2078]
[1736474669887,0.30828,3244.2,3243.9,3.2078]
[1736474670090,0.30828,3244.3,3243.9,3.2078]
[1736474670601,3.67534764,3244.6,3243.9,3.2078]
[1736474670788,0.3083,3244.1,3243.9,3.2078]
[1736474671692,2.23712067,3244.2,3243.9,3.2078]
[1736474671987,1.92883067,3244.2,3243.9,3.51611]
[1736474672189,1.92883067,3244.5,3244.2,0.30828]
[1736474672487,1.92883067,3245.4,3244.3,3.2078]
[1736474672687,0.30818,3245.3,3245.0,3.2078]
[1736474673089,2.23701067,3245.4,3245.0,3.2078]
[1736474673289,1.92883067,3245.4,3245.0,3.2078]
[1736474673586,2.23701067,3245.4,3245.0,3.2078]
[1736474673788,0.4401,3245.6,3245.0,3.2078]
[1736474673993,1.92883067,3245.7,3245.5,0.30816]
[1736474674196,1.92883067,3245.7,3245.4,3.2078]
[1736474674197,1.92883067,3246.3,3245.4,3.2078]
[1736474674383,1.92883067,3246.3,3245.9,3.51592]
[1736474674587,0.30807,3246.5,3246.0,0.30811]
[1736474675396,0.8934,3246.8,3245.9,3.2078]
[1736474675696,0.4367,3246.8,3246.4,3.51587]
[1736474676401,0.30803,3246.9,3246.4,3.51587]
[1736474676697,1.63802,3247.0,3246.4,3.51587]
[1736474676882,1.63802,3247.0,3245.6,40.8]
[1736474676883,3.97208671,3247.1,3246.8,3.2078]
[1736474677086,1.33,3247.3,3247.0,0.30802]
[1736474677493,1.33,3247.3,3246.8,3.2078]
[1736474677687,0.30802,3247.0,3246.8,3.2078]
[1736474677887,1.33,3247.3,3246.8,3.2078]
[1736474677888,2.33407671,3247.1,3246.8,3.2078]
[1736474678189,2.33407671,3247.1,3246.4,3.2078]
[1736474678393,0.4758,3247.0,3246.4,3.2078]
[1736474678695,0.05190252,3246.9,3246.4,3.2078]
[1736474678896,2.2433,3247.0,3246.4,3.2078]
[1736474679089,0.30806,3246.6,3246.4,3.2078]
[1736474679388,2.2433,3247.0,3246.4,3.2078]
[1736474679593,0.30805,3246.7,3246.4,3.2078]
[1736474680292,2.2433,3247.0,3246.4,3.2078]
[1736474680492,0.30804,3246.8,3246.4,3.2078]
[1736474680694,0.30805,3246.7,3246.4,3.2078]
[1736474680889,0.30807,3246.5,3246.4,3.2078]
[1736474681196,0.3081,3246.2,3246.0,3.2078]
[1736474681591,1.33,3246.3,3246.0,3.2078]
[1736474681798,0.3081,3246.1,3246.0,3.2078]
[1736474681988,0.30812,3246.0,3245.6,3.2078]
[1736474682895,0.9216,3246.2,3245.6,3.2078]
[1736474683098,0.30813,3245.9,3245.6,3.2078]
[1736474684294,0.30814,3245.8,3245.6,3.2078]
[1736474684492,0.30813,3245.9,3245.6,3.2078]
[1736474684794,0.4727,3246.2,3245.6,3.2078]
[1736474684996,0.7808,3246.2,3245.6,3.51595]
[1736474685200,0.30812,3246.0,3245.6,3.2078]
[1736474685997,0.30811,3246.1,3245.6,3.2078]
[1736474686191,0.4727,3246.2,3245.6,3.2078]
[1736474686900,0.05191309,3246.1,3245.6,3.2078]
[1736474687300,0.30811,3246.0,3245.6,3.2078]
[1736474687501,0.4727,3246.2,3245.6,3.2078]
[1736474687703,0.30814,3245.7,3245.6,3.2078]
[1736474688407,0.4727,3246.2,3245.6,3.2078]
[1736474688610,5.54187671,3246.3,3245.6,3.2078]
[1736474688901,0.3081,3246.1,3245.7,0.4439]
[1736474689403,0.30809,3246.3,3245.7,0.4439]
[1736474689604,0.3081,3246.2,3245.7,0.4439]
[1736474690004,0.3081,3246.2,3245.7,0.75204]
[1736474690495,0.3081,3246.1,3245.7,0.4439]
[1736474691705,2.33407671,3246.3,3245.7,0.4439]
[1736474691898,0.30813,3245.8,3245.7,0.4439]
[1736474692908,0.4688,3246.2,3245.7,0.4439]
[1736474693110,0.30813,3245.9,3245.7,0.4439]
[1736474693408,0.30813,3245.8,3245.7,0.4439]
[1736474693906,2.33407671,3245.9,3245.5,0.4498]
[1736474694103,0.30815,3245.6,3245.5,0.4498]
[1736474695305,1.92686597,3245.9,3245.5,0.4498]
[1736474695514,0.30815,3245.7,3245.5,0.4498]
[1736474696108,2.23499597,3245.9,3245.5,0.4498]
[1736474696308,0.30814,3245.8,3245.5,0.4498]
[1736474696503,0.30814,3245.7,3245.5,0.4498]
[1736474697211,1.92686597,3245.9,3245.5,0.4498]
[1736474697406,2.23499597,3245.9,3245.6,3.2078]
[1736474697602,0.30814,3245.8,3245.6,3.2078]
[1736474698309,0.30813,3245.8,3245.6,3.2078]
[1736474701806,1.92686597,3245.9,3245.6,3.2078]
[1736474702006,1.92686597,3245.9,3245.6,3.51594]
[1736474702207,1.92686597,3245.9,3245.6,3.2078]
[1736474702515,1.92686597,3245.9,3245.2,3.2078]
[1736474702710,0.30813,3245.8,3245.3,0.30817]
[1736474702907,1.33,3245.8,3245.2,3.2078]
[1736474703103,1.92686597,3245.9,3245.2,3.2078]
[1736474703418,0.9007,3246.2,3245.7,0.30814]
[1736474703419,2.36506597,3246.2,3245.7,0.30814]
[1736474703610,0.3081,3246.1,3245.8,0.9094]
[1736474703917,2.23493597,3246.5,3246.1,0.3081]
[1736474704213,1.92686597,3246.5,3246.2,0.30809]
[1736474704708,1.92686597,3246.5,3246.0,3.2078]
[1736474705115,0.30808,3246.4,3246.0,3.51591]
[1736474705312,1.92686597,3246.5,3246.0,3.51591]
[1736474705616,1.323,3246.7,3246.4,3.2078]
[1736474706008,3.2078,3246.9,3246.4,3.2078]
[1736474706207,1.92686597,3247.4,3246.8,3.2078]
[1736474706415,1.323,3247.5,3247.1,0.308]
[1736474706611,1.92686597,3247.4,3247.2,0.4591]